bitfinex-derivatives/quotes_SOLF0:USTF0_20260117
["timestamp","ask_amount","ask_price","bid_price","bid_amount"]
[1768658887345,3.12641078,143.96,143.9,9.36883615]
[1768658887643,1.73090253,143.97,143.91,3.11263615]
[1768658888846,1.73090253,143.97,143.91,9.36833615]
[1768658890742,4.85731331,143.98,143.91,9.36833615]
[1768658895155,3.12641078,143.97,143.91,9.36833615]
[1768658899764,3.12641078,143.97,143.92,3.11263615]
[1768658906870,5.25775566,143.96,143.92,3.11263615]
[1768658907069,3.12641078,143.97,143.92,3.11263615]
[1768658907271,5.25775566,143.96,143.92,3.11263615]
[1768658907566,3.12641078,143.97,143.92,3.11263615]
[1768658907767,5.26027259,143.96,143.92,3.11263615]
[1768658907968,3.12641078,143.97,143.92,3.11263615]
[1768658908169,5.26027259,143.96,143.92,3.11263615]
[1768658908367,3.12641078,143.97,143.92,3.11263615]
[1768658908569,5.26113498,143.96,143.92,3.11263615]
[1768658908866,1.73090253,143.96,143.9,3.01801548]
[1768658909170,3.03475961,143.95,143.9,3.01801548]
[1768658914571,5.25649126,143.94,143.88,9.2877489]
[1768658914766,3.11905671,143.94,143.88,9.2877489]
[1768658919976,3.11905671,143.94,143.89,3.0305489]
[1768658926079,3.11905671,143.94,143.88,6.2572]
[1768658934981,5.24905923,143.93,143.87,3.0305489]
[1768658935276,3.11905671,143.94,143.87,3.0305489]
[1768658935487,5.2488971,143.93,143.87,3.0305489]
[1768658935685,3.11905671,143.94,143.87,3.0305489]
[1768658941890,5.24863368,143.93,143.87,3.0305489]
[1768658942087,3.1121026,143.92,143.85,3.0373527]
[1768658944284,3.1121026,143.92,143.83,1.73090253]
[1768658944285,3.1121026,143.9,143.83,3.0373527]
[1768658944491,4.84300513,143.89,143.83,3.0373527]
[1768658945392,3.1121026,143.89,143.83,3.0373527]
[1768658948196,9.3678026,143.92,143.84,3.0373527]
[1768658950796,3.1121026,143.91,143.84,3.0373527]
[1768658951898,3.1121026,143.91,143.84,9.2963527]
[1768658952100,3.1121026,143.91,143.85,3.0373527]
[1768658953489,4.84493587,143.93,143.86,3.0373527]
[1768658953800,3.1121026,143.93,143.86,3.0373527]
[1768658954899,3.1121026,143.93,143.87,3.0373527]
[1768658966919,4.84493587,143.93,143.87,3.0373527]
[1768658974125,3.20656625,143.92,143.87,3.0373527]
[1768658974619,3.20656625,143.92,143.86,6.258]
[1768658974825,3.20656625,143.92,143.86,9.52980132]
[1768658976523,3.20656625,143.92,143.86,3.27180132]
[1768658976826,4.93939952,143.91,143.84,9.53060132]
[1768658982832,11.19559952,143.91,143.85,3.27180132]
[1768658986734,3.20656625,143.9,143.85,3.27180132]
[1768658990737,3.20656625,143.9,143.83,3.27180132]
[1768658990937,3.20656625,143.88,143.83,3.27180132]
[1768658991236,1.73283327,143.89,143.83,3.27180132]
[1768658993340,1.73283327,143.91,143.84,3.23483139]
[1768658993534,5.27062096,143.9,143.84,3.23483139]
[1768658993740,1.73283327,143.91,143.84,3.23483139]
[1768658993938,5.27061849,143.9,143.84,3.23483139]
[1768658994132,1.73283327,143.91,143.84,3.23483139]
[1768658994332,5.27037888,143.9,143.84,3.23483139]
[1768658994637,1.73283327,143.91,143.84,3.23483139]
[1768658994839,5.27037641,143.9,143.85,3.23483139]
[1768658995040,1.73283327,143.91,143.85,3.23483139]
[1768658995241,5.27015282,143.9,143.85,3.23483139]
[1768658995436,1.73283327,143.91,143.85,3.23483139]
[1768658995636,5.27015282,143.9,143.85,3.23483139]
[1768658995942,1.73283327,143.91,143.85,3.23483139]
[1768658999838,1.73283327,143.91,143.84,6.259]
[1768658999839,3.20496348,143.92,143.86,3.23483139]
[1768659000740,3.20496348,143.92,143.86,9.49293139]
[1768659001046,3.20496348,143.92,143.86,3.23483139]
[1768659001243,9.46086348,143.92,143.86,3.23483139]
[1768659001447,3.20496348,143.9,143.84,3.23483139]
[1768659003955,3.20496348,143.9,143.84,9.49373139]
[1768659010155,3.20496348,143.92,143.85,9.49333139]
[1768659010356,5.28475699,143.91,143.85,9.49333139]
[1768659010655,3.20496348,143.92,143.85,9.49333139]
[1768659013758,3.20496348,143.92,143.86,3.23483139]
[1768659014160,5.28629652,143.91,143.86,3.23483139]
[1768659014350,3.20496348,143.92,143.86,3.23483139]
[1768659014556,5.28642184,143.91,143.86,3.23483139]
[1768659014852,3.20496348,143.92,143.86,3.23483139]
[1768659015156,5.2864206,143.91,143.86,3.23483139]
[1768659015357,3.20496348,143.92,143.86,3.23483139]
[1768659015557,5.28705396,143.91,143.86,3.23483139]
[1768659015757,3.20496348,143.92,143.86,3.23483139]
[1768659015959,8.49201744,143.91,143.86,3.23483139]
[1768659016148,3.20496348,143.91,143.86,3.23483139]
[1768659042494,4.93057302,143.93,143.86,3.23483139]
[1768659042696,5.29977927,143.92,143.86,3.23483139]
[1768659042886,5.29977927,143.91,143.86,3.23483139]
[1768659043087,4.93057302,143.93,143.86,3.23483139]
[1768659043385,5.29980039,143.92,143.86,3.23483139]
[1768659043585,5.29980039,143.91,143.86,3.23483139]
[1768659043786,4.93057302,143.93,143.86,3.23483139]
[1768659044085,5.29977621,143.92,143.86,3.23483139]
[1768659044290,4.93057302,143.93,143.86,3.23483139]
[1768659044291,5.29977621,143.91,143.86,3.23483139]
[1768659044490,3.19822749,143.92,143.86,3.23483139]
[1768659044793,5.29979922,143.91,143.86,3.23483139]
[1768659044996,3.19822749,143.92,143.86,3.23483139]
[1768659045195,5.29979922,143.91,143.86,3.23483139]
[1768659045492,3.19822749,143.92,143.86,3.23483139]
[1768659045694,5.29978884,143.91,143.86,3.23483139]
[1768659045894,3.19822749,143.92,143.86,3.23483139]
[1768659046094,5.29978884,143.91,143.86,3.23483139]
[1768659046294,1.73234553,143.91,143.86,3.23483139]
[1768659047197,4.93057302,143.91,143.86,3.23483139]
[1768659051596,3.19822749,143.91,143.86,3.23483139]
[1768659053102,1.73234553,143.92,143.86,3.23483139]
[1768659053402,5.30225651,143.91,143.86,3.23483139]
[1768659053705,4.82996737,143.92,143.86,3.23483139]
[1768659053998,5.30298543,143.91,143.86,3.23483139]
[1768659054198,4.82996737,143.92,143.86,3.23483139]
[1768659054397,5.30298543,143.91,143.86,3.23483139]
[1768659054596,4.82996737,143.92,143.86,3.23483139]
[1768659054795,5.30401996,143.91,143.86,3.23483139]
[1768659054994,3.09762184,143.92,143.87,3.19957746]
[1768659055194,5.30401395,143.91,143.87,3.19957746]
[1768659055398,4.82996737,143.92,143.87,3.19957746]
[1768659055601,5.30466284,143.91,143.87,3.19957746]
[1768659055795,4.82996737,143.92,143.87,3.19957746]
[1768659055996,5.30466284,143.91,143.87,3.19957746]
[1768659056197,4.82996737,143.92,143.87,3.19957746]
[1768659056399,5.30466284,143.91,143.87,3.19957746]
[1768659056598,4.82996737,143.92,143.87,3.19957746]
[1768659056792,5.30461099,143.91,143.87,3.19957746]
[1768659056990,4.82996737,143.92,143.87,3.19957746]
[1768659057195,5.30461099,143.91,143.87,3.19957746]
[1768659057397,4.82996737,143.92,143.87,3.19957746]
[1768659057601,5.30456536,143.91,143.87,3.19957746]
[1768659057899,4.82996737,143.92,143.87,3.19957746]
[1768659058101,5.30456411,143.91,143.87,3.19957746]
[1768659058398,4.82996737,143.92,143.87,3.19957746]
[1768659058599,5.30452236,143.91,143.87,3.19957746]
[1768659058801,4.82996737,143.92,143.87,3.19957746]
[1768659058991,5.30452236,143.91,143.87,3.19957746]
[1768659059194,4.82996737,143.92,143.87,3.19957746]
[1768659059399,5.30452236,143.91,143.87,3.19957746]
[1768659059607,4.82996737,143.92,143.87,3.19957746]
[1768659059901,5.30448618,143.91,143.87,3.19957746]
[1768659060102,4.82996737,143.92,143.87,3.19957746]
[1768659060296,5.30448618,143.91,143.87,3.19957746]
[1768659060498,4.82996737,143.92,143.87,3.19957746]
[1768659060799,20.87,143.96,143.88,3.19957746]
[1768659060800,3.09762184,143.94,143.88,3.19957746]
[1768659061503,4.82996737,143.96,143.89,9.45637746]
[1768659061803,4.82996737,143.96,143.9,3.19957746]
[1768659062306,3.09762184,143.95,143.9,3.19957746]
[1768659064818,3.09762184,143.97,143.91,3.19957746]
[1768659066009,3.09762184,143.97,143.91,9.45547746]
[1768659066313,6.2529,143.99,143.93,3.19957746]
[1768659066314,3.09762184,143.99,143.93,3.19957746]
[1768659073617,1.73024054,143.98,143.93,3.19957746]
[1768659074920,4.82786238,143.98,143.93,3.19957746]
[1768659075517,3.09762184,143.97,143.92,6.2555]
[1768659075922,1.73024054,143.96,143.92,6.2555]
[1768659081718,1.73024054,143.96,143.91,3.19957746]
[1768659082425,3.26867484,143.99,143.93,3.11903412]
[1768659082617,1.73024054,143.98,143.93,3.11903412]
[1768659084828,3.26867484,143.99,143.93,3.11903412]
[1768659085028,4.99891538,143.99,143.93,3.11903412]
[1768659092538,3.06320853,143.98,143.92,6.2554]
[1768659093242,3.06320853,143.98,143.92,9.35229532]
[1768659095139,3.06320853,143.98,143.9,9.35299532]
[1768659095738,3.06320853,143.98,143.91,3.09689532]
[1768659098552,1.73024054,143.97,143.91,3.09689532]
[1768659098747,4.79344907,143.97,143.91,3.09689532]
[1768659101346,11.04694907,143.97,143.91,3.09689532]
[1768659101551,8.28811463,143.96,143.88,3.09689532]
[1768659101752,3.06320853,143.96,143.88,3.09689532]
[1768659108254,5.23277508,143.95,143.88,3.09689532]
[1768659108460,3.06320853,143.96,143.88,3.09689532]
[1768659108651,5.23277508,143.95,143.88,3.09689532]
[1768659108852,3.06320853,143.96,143.88,3.09689532]
[1768659109052,5.23277508,143.95,143.88,3.09689532]
[1768659109351,3.06320853,143.96,143.88,3.09689532]
[1768659109552,5.23287553,143.95,143.88,3.09689532]
[1768659109753,3.06320853,143.95,143.88,3.09689532]
[1768659111457,8.2956667,143.94,143.88,3.09689532]
[1768659111651,3.06320853,143.94,143.88,3.09689532]
[1768659125365,5.23503389,143.93,143.88,3.09689532]
[1768659125565,3.06320853,143.94,143.88,3.09689532]
[1768659126463,3.06320853,143.94,143.86,1.73024054]
[1768659126766,3.06320853,143.94,143.86,4.76422428]
[1768659126966,3.06320853,143.94,143.87,3.03398374]
[1768659129274,4.79487892,143.94,143.87,3.03398374]
[1768659129477,3.26208768,143.93,143.87,3.03398374]
[1768659145286,4.99375807,143.93,143.87,3.03398374]
[1768659146690,3.26208768,143.93,143.87,3.03398374]
[1768659146894,4.99375807,143.93,143.87,3.03398374]
[1768659159206,4.99375807,143.93,143.87,9.29168374]
[1768659162713,5.24128452,143.92,143.87,3.03398374]
[1768659162915,4.99375807,143.93,143.87,3.03398374]
[1768659165913,3.26208768,143.93,143.87,3.03398374]
[1768659166112,4.99375807,143.93,143.87,3.03398374]
[1768659169810,5.24413703,143.92,143.87,3.03398374]
[1768659170015,4.99375807,143.93,143.87,3.03398374]
[1768659170215,5.24406927,143.92,143.87,3.03398374]
[1768659170516,4.99375807,143.93,143.87,9.29168374]
[1768659170717,5.24429897,143.92,143.87,9.29168374]
[1768659171013,4.99375807,143.93,143.87,9.29168374]
[1768659171200,5.24429897,143.92,143.87,9.29168374]
[1768659171505,4.99375807,143.93,143.87,9.29168374]
[1768659171701,5.24422435,143.92,143.87,9.29168374]
[1768659171902,4.99375807,143.93,143.87,9.29168374]
[1768659172106,5.24419048,143.92,143.87,9.29168374]
[1768659172403,4.99375807,143.93,143.87,9.29168374]
[1768659172606,5.24414564,143.92,143.87,9.29168374]
[1768659172804,4.99375807,143.93,143.87,9.29168374]
[1768659173003,5.24414564,143.92,143.87,9.29168374]
[1768659173215,4.99375807,143.93,143.87,9.29168374]
[1768659173415,5.2441795,143.92,143.87,9.29168374]
[1768659173610,4.99375807,143.93,143.87,9.29168374]
[1768659173811,5.24406984,143.92,143.87,9.29168374]
[1768659174011,4.99375807,143.93,143.87,9.29168374]
[1768659174211,5.24406984,143.92,143.87,9.29168374]
[1768659174420,4.99375807,143.93,143.87,9.29168374]
[1768659174618,5.24396895,143.92,143.87,9.29168374]
[1768659174816,4.99375807,143.93,143.87,9.29168374]
[1768659175016,5.24396895,143.92,143.87,9.29168374]
[1768659175217,4.99375807,143.93,143.87,9.29168374]
[1768659175416,5.24396895,143.92,143.87,9.29168374]
[1768659175615,4.99375807,143.93,143.87,9.29168374]
[1768659175816,5.24388021,143.92,143.87,9.29168374]
[1768659176017,4.99375807,143.93,143.87,9.29168374]
[1768659176215,5.24388021,143.92,143.87,9.29168374]
[1768659176514,4.99375807,143.93,143.87,9.29168374]
[1768659176715,5.2437999,143.92,143.87,9.29168374]
[1768659176916,4.99375807,143.93,143.87,9.29168374]
[1768659177118,5.2437999,143.92,143.87,9.29168374]
[1768659177312,3.26208768,143.93,143.87,9.29168374]
[1768659177508,5.24372198,143.92,143.87,9.29168374]
[1768659177709,3.26208768,143.93,143.87,9.29168374]
[1768659177910,5.24372198,143.92,143.87,9.29168374]
[1768659178110,3.26208768,143.93,143.87,9.29168374]
[1768659178314,5.24372198,143.92,143.87,9.29168374]
[1768659178515,3.26208768,143.93,143.87,9.29168374]
[1768659178710,5.24365921,143.92,143.87,9.29168374]
[1768659178914,3.26208768,143.93,143.87,9.29168374]
[1768659179122,5.24365921,143.92,143.87,9.29168374]
[1768659179322,3.26208768,143.93,143.87,9.29168374]
[1768659179517,5.24381205,143.92,143.87,9.29168374]
[1768659179717,3.26208768,143.93,143.87,9.29168374]
[1768659179916,5.24377572,143.92,143.87,9.29168374]
[1768659180117,3.26208768,143.93,143.87,9.29168374]
[1768659180317,5.24377572,143.92,143.87,9.29168374]
[1768659180518,3.26208768,143.93,143.87,9.29168374]
[1768659180717,5.24398828,143.92,143.87,9.29168374]
[1768659180918,3.26208768,143.93,143.87,9.29168374]
[1768659181119,5.24398828,143.92,143.87,9.29168374]
[1768659181417,3.26208768,143.93,143.87,9.29168374]
[1768659181624,5.24422063,143.92,143.87,9.29168374]
[1768659181824,3.26208768,143.93,143.87,9.29168374]
[1768659182022,5.24422063,143.92,143.87,9.29168374]
[1768659182321,3.26208768,143.93,143.87,9.29168374]
[1768659182523,5.24437904,143.92,143.87,9.29168374]
[1768659182720,3.26208768,143.93,143.87,9.29168374]
[1768659182922,5.24437904,143.92,143.87,9.29168374]
[1768659183222,3.26208768,143.93,143.87,9.29168374]
[1768659183423,5.24878821,143.92,143.87,9.29168374]
[1768659183626,3.26208768,143.93,143.87,9.29168374]
[1768659183926,5.24895189,143.92,143.87,9.29168374]
[1768659184226,3.26208768,143.93,143.87,9.29168374]
[1768659184525,3.01253483,143.95,143.89,3.05832717]
[1768659184725,4.74420522,143.97,143.89,3.05832717]
[1768659185722,3.01253483,143.97,143.89,3.05832717]
[1768659185923,3.01253483,143.97,143.91,9.31422717]
[1768659193734,1.73068615,143.98,143.92,3.05832717]
[1768659193929,1.73068615,143.98,143.92,9.31382717]
[1768659196034,3.01253483,143.99,143.92,9.31382717]
[1768659196534,5.21073669,143.98,143.92,9.31382717]
[1768659196735,3.01253483,143.99,143.94,3.05832717]
[1768659198438,4.74322098,144.01,143.94,9.31292717]
[1768659198736,5.20727943,144.0,143.94,9.31292717]
[1768659198938,4.74322098,144.01,143.94,9.31292717]
[1768659199239,5.20727943,144.0,143.94,9.31292717]
[1768659199436,4.74322098,144.01,143.94,9.31292717]
[1768659201240,4.74322098,144.01,143.95,6.2542]
[1768659203244,3.03575456,144.0,143.95,6.2542]
[1768659216557,3.03575456,144.0,143.95,9.34763308]
[1768659220566,3.03575456,144.0,143.95,3.09343308]
[1768659234979,9.41450188,144.02,143.95,3.09343308]
[1768659235180,5.22653855,144.01,143.95,3.09343308]
[1768659235480,5.22653855,144.0,143.95,3.09343308]
[1768659235667,3.16320188,144.01,143.95,3.09343308]
[1768659235867,5.22746958,144.0,143.95,3.09343308]
[1768659236072,3.16320188,144.01,143.95,3.09343308]
[1768659236273,5.22746958,144.0,143.95,3.09343308]
[1768659236472,3.16320188,144.01,143.95,3.09343308]
[1768659236672,5.22854501,144.0,143.95,3.09343308]
[1768659236874,3.16320188,144.01,143.95,3.09343308]
[1768659237074,5.22854501,144.0,143.95,3.09343308]
[1768659237274,3.16320188,144.01,143.95,3.09343308]
[1768659237577,5.22981503,144.0,143.95,3.09343308]
[1768659237875,3.16320188,144.01,143.95,3.09343308]
[1768659238076,5.22981382,144.0,143.95,3.09343308]
[1768659238277,3.16320188,144.01,143.95,3.09343308]
[1768659238480,5.23137389,144.0,143.95,3.09343308]
[1768659238679,5.23137389,143.99,143.95,3.09343308]
[1768659238883,3.16320188,144.01,143.95,3.09343308]
[1768659239086,5.23137389,144.0,143.95,3.09343308]
[1768659239284,5.23137389,143.99,143.95,3.09343308]
[1768659239479,3.16320188,144.01,143.95,3.09343308]
[1768659239785,5.23239305,144.0,143.95,3.09343308]
[1768659240079,3.16320188,144.01,143.95,3.09343308]
[1768659240080,5.23239305,143.99,143.95,3.09343308]
[1768659240278,3.16320188,144.01,143.95,3.09343308]
[1768659240482,5.23360395,144.0,143.95,3.09343308]
[1768659240676,5.23360395,143.99,143.96,3.02202972]
[1768659240885,3.16320188,144.01,143.96,3.02202972]
[1768659241084,5.23355254,144.0,143.96,3.02202972]
[1768659241271,3.16320188,144.01,143.96,3.02202972]
[1768659241272,5.23355254,143.99,143.96,3.02202972]
[1768659241476,3.16320188,144.01,143.96,3.02202972]
[1768659241677,5.23529826,144.0,143.96,3.02202972]
[1768659241877,5.23529826,143.99,143.96,3.02202972]
[1768659242079,1.73068615,144.02,143.96,3.02202972]
[1768659242277,5.23529826,144.01,143.96,3.02202972]
[1768659242478,5.23529826,144.0,143.96,3.02202972]
[1768659242680,5.23529826,143.99,143.96,3.02202972]
[1768659242880,3.16320188,144.03,143.96,3.02202972]
[1768659243180,8.39952813,144.02,143.96,3.02202972]
[1768659243373,5.23632625,144.01,143.96,3.02202972]
[1768659243573,5.23632625,144.0,143.96,3.02202972]
[1768659243780,5.23632625,143.99,143.96,3.02202972]
[1768659244079,3.16320188,144.02,143.96,3.02202972]
[1768659244280,5.22591609,144.01,143.96,3.02202972]
[1768659244485,5.22591609,144.0,143.96,3.02202972]
[1768659244688,5.22591609,143.99,143.96,3.02202972]
[1768659244986,3.16320188,144.02,143.96,3.02202972]
[1768659245286,5.2260602,144.01,143.96,3.02202972]
[1768659245481,5.2260602,144.0,143.96,3.02202972]
[1768659245791,3.16320188,144.04,143.97,3.02202972]
[1768659246087,5.22538711,144.03,143.97,3.02202972]
[1768659246276,5.22538711,144.02,143.97,3.02202972]
[1768659246481,5.22538711,144.01,143.97,3.02202972]
[1768659246682,3.16320188,144.04,143.97,3.02202972]
[1768659246880,3.16320188,144.04,143.97,9.27542972]
[1768659246881,5.22354691,144.03,143.97,9.27542972]
[1768659247083,5.22354691,144.02,143.97,9.27542972]
[1768659247287,3.16320188,144.04,143.97,9.27542972]
[1768659247485,5.22170063,144.03,143.98,3.02202972]
[1768659247690,5.22170063,144.02,143.98,3.02202972]
[1768659247889,3.16320188,144.04,143.98,3.02202972]
[1768659248192,5.22160301,144.03,143.98,3.02202972]
[1768659248384,5.22160301,144.02,143.98,3.02202972]
[1768659248578,3.16320188,144.04,143.98,3.02202972]
[1768659248787,5.22003754,144.03,143.98,3.02202972]
[1768659248976,5.22003754,144.02,143.98,3.02202972]
[1768659249177,3.16320188,144.04,143.98,9.27482972]
[1768659249487,5.21891531,144.03,143.98,9.27482972]
[1768659249691,3.16320188,144.04,143.98,9.27482972]
[1768659249881,5.21852818,144.03,143.98,9.27482972]
[1768659250080,3.16320188,144.04,143.98,9.27482972]
[1768659250289,5.21852818,144.03,143.98,9.27482972]
[1768659250479,3.16320188,144.04,143.98,9.27482972]
[1768659250689,5.21700443,144.03,143.98,9.27482972]
[1768659250883,3.16320188,144.04,143.98,9.27482972]
[1768659251087,5.21700443,144.03,143.98,9.27482972]
[1768659251287,3.16320188,144.04,143.98,9.27482972]
[1768659251489,5.21575842,144.03,143.98,9.27482972]
[1768659251785,3.16320188,144.04,143.98,9.27482972]
[1768659251986,5.21575842,144.03,143.98,9.27482972]
[1768659252187,3.16320188,144.04,143.98,9.27482972]
[1768659264303,3.16320188,144.04,143.99,3.27385664]
[1768659274009,1.72877161,144.05,143.99,3.27385664]
[1768659274708,4.95992979,144.05,143.99,3.27385664]
[1768659284919,3.23115818,144.05,143.99,3.27385664]
[1768659285414,4.95992979,144.05,143.99,3.27385664]
[1768659285918,4.95992979,144.05,143.99,9.52625664]
[1768659286224,4.95992979,144.05,144.0,3.30378874]
[1768659286911,3.23115818,144.05,144.0,3.30378874]
[1768659287317,4.95992979,144.07,144.0,3.30378874]
[1768659287613,5.21161538,144.06,144.0,3.30378874]
[1768659287814,4.95992979,144.07,144.0,9.55578874]
[1768659288017,5.21161415,144.06,144.0,9.55578874]
[1768659288217,4.95992979,144.07,144.0,9.55578874]
[1768659289328,5.2128827,144.06,144.0,9.55578874]
[1768659289524,4.95992979,144.07,144.0,9.55578874]
[1768659289727,5.2128827,144.06,144.0,9.55578874]
[1768659289921,4.95992979,144.07,144.0,9.55578874]
[1768659290122,5.2128827,144.06,144.0,9.55578874]
[1768659290321,4.95992979,144.07,144.0,9.55578874]
[1768659290517,5.21380138,144.06,144.0,9.55578874]
[1768659290721,4.95992979,144.07,144.0,9.55578874]
[1768659291035,4.95992979,144.07,144.01,6.2516]
[1768659291718,4.95992979,144.07,144.01,9.55228166]
[1768659291920,1.72877161,144.07,144.02,3.30068166]
[1768659292435,9.48172036,144.09,144.03,3.30068166]
[1768659292436,4.96199197,144.09,144.03,3.30068166]
[1768659292726,5.21273475,144.08,144.03,3.30068166]
[1768659293033,4.96199197,144.09,144.03,3.30068166]
[1768659293234,5.21237904,144.08,144.03,3.30068166]
[1768659293426,3.23322036,144.08,144.03,3.30068166]
[1768659293632,1.72877161,144.07,144.02,6.2511]
[1768659294226,3.23322036,144.08,144.02,9.55178166]
[1768659294423,4.96199197,144.08,144.02,9.55178166]
[1768659294930,3.23322036,144.08,144.03,3.30068166]
[1768659295536,3.23322036,144.12,144.04,3.30068166]
[1768659295834,4.96199197,144.1,144.04,3.30068166]
[1768659296037,6.2467,144.13,143.92,16.26877872]
[1768659296038,3.23322036,144.04,143.92,16.26877872]
[1768659296229,3.23322036,144.0,143.93,3.30068166]
[1768659296628,3.23322036,144.0,143.94,3.30068166]
[1768659297228,3.23322036,144.03,143.95,3.30068166]
[1768659297435,4.96199197,144.03,143.95,3.30068166]
[1768659298238,3.23322036,144.03,143.96,3.30068166]
[1768659300731,1.72877161,144.02,143.96,3.30068166]
[1768659301040,4.96199197,144.02,143.96,3.30068166]
[1768659301438,3.23322036,144.04,143.96,3.30068166]
[1768659301642,1.72877161,144.01,143.96,3.30068166]
[1768659301842,4.96199197,144.01,143.96,3.30068166]
[1768659302034,4.96199197,144.01,143.94,3.30068166]
[1768659302035,3.23322036,144.0,143.94,3.30068166]
[1768659302535,4.96199197,144.0,143.94,3.30068166]
[1768659303043,3.23322036,144.0,143.94,3.30068166]
[1768659303245,4.96199197,144.0,143.94,3.30068166]
[1768659303743,3.23322036,143.99,143.94,3.30068166]
[1768659304346,1.72877161,143.98,143.92,3.30068166]
[1768659305542,6.2515,144.02,143.89,3.30068166]
[1768659305543,1.72877161,143.94,143.89,3.30068166]
[1768659309350,1.72877161,143.95,143.89,3.30068166]
[1768659309550,4.96199197,143.95,143.89,3.30068166]
[1768659310760,3.23322036,143.95,143.89,3.30068166]
[1768659311054,1.72877161,143.94,143.89,3.30068166]
[1768659311247,3.23322036,143.95,143.89,3.30068166]
[1768659311443,1.72877161,143.94,143.89,3.30068166]
[1768659311754,4.96199197,143.95,143.89,3.30068166]
[1768659313450,1.73183984,143.94,143.89,3.30068166]
[1768659318463,3.23322036,143.95,143.89,3.30068166]
[1768659318657,1.73183984,143.94,143.89,3.30068166]
[1768659322859,3.23322036,143.95,143.89,3.30068166]
[1768659323069,4.9650602,143.95,143.89,3.30068166]
[1768659325463,1.73183984,143.93,143.89,3.30068166]
[1768659325762,4.9650602,143.95,143.89,3.30068166]
[1768659326263,3.21523552,143.94,143.89,3.30068166]
[1768659347168,5.22328208,143.93,143.89,3.30068166]
[1768659347373,3.21523552,143.94,143.89,3.30068166]
[1768659347672,5.2232791,143.93,143.89,3.30068166]
[1768659347865,3.21523552,143.94,143.89,3.30068166]
[1768659348066,5.2232791,143.93,143.89,3.30068166]
[1768659348266,3.21523552,143.94,143.89,3.30068166]
[1768659348970,5.22605318,143.93,143.89,3.30068166]
[1768659349178,3.21523552,143.94,143.89,3.30068166]
[1768659349475,5.22935474,143.93,143.89,3.30068166]
[1768659349677,3.21523552,143.94,143.89,3.30068166]
[1768659349873,5.22939289,143.93,143.89,3.30068166]
[1768659350178,3.21523552,143.94,143.89,3.30068166]
[1768659350371,5.23293875,143.93,143.89,3.30068166]
[1768659350572,3.21523552,143.94,143.89,3.30068166]
[1768659350771,5.2329043,143.93,143.89,3.30068166]
[1768659350972,3.21523552,143.94,143.89,3.30068166]
[1768659351270,5.2329043,143.93,143.89,3.30068166]
[1768659351470,3.21523552,143.94,143.89,3.30068166]
[1768659351670,5.23292285,143.93,143.89,3.30068166]
[1768659351873,3.21523552,143.94,143.89,3.30068166]
[1768659352070,5.23292285,143.93,143.89,3.30068166]
[1768659352270,3.21523552,143.94,143.89,3.30068166]
[1768659352470,5.23296136,143.93,143.89,3.30068166]
[1768659352777,3.21523552,143.94,143.89,3.30068166]
[1768659353080,5.23296136,143.93,143.89,3.30068166]
[1768659353271,3.21523552,143.94,143.89,3.30068166]
[1768659353466,5.23300387,143.93,143.87,3.25979831]
[1768659353672,3.21523552,143.94,143.87,3.25979831]
[1768659353673,5.23300387,143.92,143.87,3.25979831]
[1768659353876,4.94707536,143.94,143.87,3.25979831]
[1768659354070,5.23312516,143.93,143.87,3.25979831]
[1768659354267,5.23312516,143.92,143.87,3.25979831]
[1768659354470,3.18857536,143.93,143.87,3.25979831]
[1768659354675,5.23304394,143.92,143.87,3.25979831]
[1768659354875,3.18857536,143.93,143.87,3.25979831]
[1768659355165,5.23304394,143.92,143.87,3.25979831]
[1768659355371,3.18857536,143.93,143.87,3.25979831]
[1768659355578,5.23298339,143.92,143.87,3.25979831]
[1768659355779,3.18857536,143.93,143.87,3.25979831]
[1768659356076,5.23298215,143.92,143.87,3.25979831]
[1768659356277,3.18857536,143.93,143.87,3.25979831]
[1768659356474,5.2329301,143.92,143.87,3.25979831]
[1768659356674,3.18857536,143.93,143.87,3.25979831]
[1768659356879,5.23293134,143.92,143.87,3.25979831]
[1768659357079,2.61202689,143.93,143.87,3.25979831]
[1768659358574,6.2542,143.96,143.88,3.25979831]
[1768659358881,5.23319625,143.95,143.88,3.25979831]
[1768659359176,5.23319625,143.94,143.88,3.25979831]
[1768659359383,5.23319625,143.93,143.88,3.25979831]
[1768659359676,3.18857536,143.95,143.88,3.25979831]
[1768659359878,5.23341071,143.94,143.88,3.25979831]
[1768659360075,5.23341071,143.93,143.88,3.25979831]
[1768659360277,5.23341071,143.92,143.88,3.25979831]
[1768659360477,3.18857536,143.95,143.88,3.25979831]
[1768659360678,8.42218611,143.94,143.88,3.25979831]
[1768659360880,5.23361075,143.93,143.88,3.25979831]
[1768659361081,5.23361075,143.92,143.88,3.25979831]
[1768659361380,3.18857536,143.94,143.88,3.25979831]
[1768659361582,5.23385195,143.93,143.88,3.25979831]
[1768659361781,5.23385195,143.92,143.88,3.25979831]
[1768659362083,3.18857536,143.94,143.88,3.25979831]
[1768659362381,5.2342457,143.93,143.88,3.25979831]
[1768659362580,5.2342457,143.92,143.88,3.25979831]
[1768659362782,3.18857536,143.94,143.88,3.25979831]
[1768659362977,5.23400731,143.93,143.88,3.25979831]
[1768659363179,3.18857536,143.94,143.88,3.25979831]
[1768659363380,5.21199461,143.93,143.88,3.25979831]
[1768659363680,3.18857536,143.94,143.88,3.25979831]